[Event "Bhopal GM Open 2019"]
[Site "Bhopal"]
[Date "2019.12.22"]
[Round "3.16"]
[White "Varun, Vij"]
[Black "Abdullaev, Rasulbek"]
[Result "1-0"]
[ECO "A45"]
[WhiteElo "1964"]
[BlackElo "1770"]
[Annotator "NA"]
[PlyCount "91"]
[EventDate "2019.12.21"]
[EventType "swiss"]
[EventCountry "IND"]
[SourceTitle "playchess.com"]
[Source "ChessBase"]
[SourceQuality "1"]
[TimeControl "5400+30"]

1. d4 {[%emt 0:01:55]} Nf6 {[%emt 0:00:00]} 2. Bf4 {[%emt 0:00:06]} d5 {[%emt 0:00:26]} 3. e3 {[%emt 0:00:06]} c5 {[%emt 0:00:14]} 4. dxc5 {[%emt 0:00:05]} Nc6 {[%emt 0:00:30]} 5. Bb5 {[%emt 0:00:02]} Qa5+ {[%emt 0:01:06]} 6. Nc3 {[%emt 0:00:07]} a6 {[%emt 0:00:20]} 7. Bxc6+ {[%emt 0:00:26]} bxc6 {[%emt 0:00:04]} 8. Nf3 {[%emt 0:01:30]} Qxc5 {[%emt 0:00:17]} 9. Ne5 {[%emt 0:02:25]} e6 {[%emt 0:01:17]} 10. O-O {[%emt 0:00:18]} Be7 {[%emt 0:02:12]} 11. Na4 {[%emt 0:00:04]} Qa5 {[%emt 0:03:01]} 12. c4 {[%emt 0:00:06]} Bb7 {[%emt 0:00:33]} 13. b4 {[%emt 0:05:51]} Qd8 {[%emt 0:07:44]} 14. Qd4 {[%emt 0:01:48]} O-O {[%emt 0:00:50]} 15. Nb6 {[%emt 0:00:36]} Bxb4 {[%emt 0:04:38]} 16. c5 {[%emt 0:03:00]} Ba5 {[%emt 0:00:28]} 17. Nxa8 {[%emt 0:03:17]} Qxa8 {[%emt 0:00:10]} 18. Qa4 {[%emt 0:00:42]} Bc3 {[%emt 0:02:24]} 19. Rab1 {[%emt 0:02:33]} Ne4 {[%emt 0:02:21]} 20. Nd7 {[%emt 0:01:31]} Re8 {[%emt 0:00:45]} 21. Qb3 {[%emt 0:00:52]} Bc8 {[%emt 0:01:25]} 22. Nb6 {[%emt 0:01:03]} Qa7 {[%emt 0:01:19]} 23. f3 {[%emt 0:00:05]} Nd2 {[%emt 0:00:35]} 24. Qxc3 {[%emt 0:00:06]} Nxf1 {[%emt 0:00:05]} 25. Rxf1 {[%emt 0:00:04]} f6 {[%emt 0:00:14]} 26. Bd6 {[%emt 0:00:06]} Qf7 {[%emt 0:00:35]} 27. Nxc8 {[%emt 0:00:14]} Rxc8 {[%emt 0:00:04]} 28. Qa5 {[%emt 0:00:05]} h5 {[%emt 0:02:02]} 29. Qxa6 {[%emt 0:00:07]} Qe8 {[%emt 0:00:04]} 30. Rb1 {[%emt 0:00:14]} Kh7 {[%emt 0:00:23]} 31. Qd3+ {[%emt 0:00:10]} Kh6 {[%emt 0:01:26]} 32. Rb7 {[%emt 0:00:25]} e5 {[%emt 0:00:14]} 33. Re7 {[%emt 0:00:40]} Qd8 {[%emt 0:00:22]} 34. Qd2 {[%emt 0:02:10]} Rb8 {[%emt 0:03:34]} 35. e4+ {[%emt 0:00:36]} g5 {[%emt 0:00:27]} 36. h4 {[%emt 0:01:05]} Rb1+ {[%emt 0:03:02]} 37. Kh2 {[%emt 0:00:02]} Qg8 {[%emt 0:05:01]} 38. exd5 {[%emt 0:00:59]} cxd5 {[%emt 0:00:11]} 39. Qc2 {[%emt 0:00:16]} Rb4 {[%emt 0:00:13]} 40. Rh7+ {[%emt 0:00:46]} Qxh7 {[%emt 0:00:18]} 41. Bf8+ {[%emt 0:00:01]} Qg7 {[%emt 0:00:19]} 42. hxg5+ {[%emt 0:00:04]} fxg5 {[%emt 0:00:09]} 43. Bxg7+ {[%emt 0:00:06]} Kxg7 {[%emt 0:00:10]} 44. c6 {[%emt 0:00:02]} Rh4+ {[%emt 0:00:20]} 45. Kg1 {[%emt 0:00:05]} Rc4 {[%emt 0:00:13]} 46. Qxc4 {[%emt 0:00:04]} 1-0

[Event "Bhopal GM Open 2019"]
[Site "Bhopal"]
[Date "2019.12.22"]
[Round "3.17"]
[White "Mohanty Soyamsree"]
[Black "Ziatdinov, Raset"]
[Result "0-1"]
[ECO "A46"]
[WhiteElo "1639"]
[BlackElo "2204"]
[Annotator "NA"]
[PlyCount "66"]
[EventDate "2019.12.21"]
[EventType "swiss"]
[EventCountry "IND"]
[SourceTitle "playchess.com"]
[Source "ChessBase"]
[SourceQuality "1"]
[TimeControl "5400+30"]

1. d4 {[%emt 0:00:00]} Nf6 {[%emt 0:01:50]} 2. Nf3 {[%emt 0:00:00]} e6 {[%emt 0:00:11]} 3. g3 {[%emt 0:00:08]} c5 {[%emt 0:00:12]} 4. c3 {[%emt 0:00:14]} Nc6 {[%emt 0:00:29]} 5. Bg2 {[%emt 0:00:07]} d5 {[%emt 0:00:10]} 6. O-O {[%emt 0:00:33]} Be7 {[%emt 0:00:14]} 7. a4 {[%emt 0:00:48]} O-O {[%emt 0:00:13]} 8. Na3 {[%emt 0:00:11]} cxd4 {[%emt 0:02:40]} 9. cxd4 {[%emt 0:03:04]} a6 {[%emt 0:00:09]} 10. Nc2 {[%emt 0:10:53]} Bd7 {[%emt 0:00:13]} 11. Bg5 {[%emt 0:01:37]} Rc8 {[%emt 0:00:29]} 12. Ne3 {[%emt 0:02:05]} Ne4 {[%emt 0:04:40]} 13. Bxe7 {[%emt 0:00:34]} Qxe7 {[%emt 0:00:03]} 14. Qb3 {[%emt 0:02:41]} Rc7 {[%emt 0:02:18]} 15. Rfc1 {[%emt 0:08:35]} Rfc8 {[%emt 0:00:13]} 16. Qb6 {[%emt 0:00:22]} Be8 {[%emt 0:03:34]} 17. Ne1 {[%emt 0:06:45]} Nf6 {[%emt 0:05:48]} 18. Rd1 {[%emt 0:08:05]} Nb4 {[%emt 0:15:35]} 19. Nd3 {[%emt 0:04:42]} Nxd3 {[%emt 0:00:36]} 20. exd3 {[%emt 0:03:27]} Rc6 {[%emt 0:04:09]} 21. Qa5 {[%emt 0:00:35]} Qd6 {[%emt 0:02:21]} 22. Qd2 {[%emt 0:01:04]} Rb6 {[%emt 0:02:53]} 23. g4 {[%emt 0:19:17]} Qf4 {[%emt 0:07:17]} 24. g5 {[%emt 0:01:17]} Nh5 {[%emt 0:00:44]} 25. Rac1 {[%emt 0:04:23]} Rbc6 {[%emt 0:02:28]} 26. Rxc6 {[%emt 0:02:30]} Bxc6 {[%emt 0:00:09]} 27. Qe2 {[%emt 0:05:01]} Qxg5 {[%emt 0:00:43]} 28. b3 {[%emt 0:00:28]} Nf4 {[%emt 0:01:01]} 29. Qg4 {[%emt 0:00:11]} Qxg4 {[%emt 0:01:08]} 30. Nxg4 {[%emt 0:00:06]} Ne2+ {[%emt 0:00:03]} 31. Kf1 {[%emt 0:00:22]} Nxd4 {[%emt 0:00:09]} 32. Rb1 {[%emt 0:00:13]} Be8 {[%emt 0:00:16]} 33. Ne5 {[%emt 0:00:32]} Rc3 {[%emt 0:00:19]} 0-1

[Event "Bhopal GM Open 2019"]
[Site "Bhopal"]
[Date "2019.12.22"]
[Round "3.18"]
[White "Deshmukh, Anup"]
[Black "Shriya R Revankar"]
[Result "1-0"]
[ECO "A30"]
[WhiteElo "2168"]
[BlackElo "1736"]
[Annotator "NA"]
[PlyCount "51"]
[EventDate "2019.12.21"]
[EventType "swiss"]
[EventCountry "IND"]
[SourceTitle "playchess.com"]
[Source "ChessBase"]
[SourceQuality "1"]
[TimeControl "5400+30"]

1. c4 {[%emt 0:00:00]} c5 {[%emt 0:00:00]} 2. Nf3 {[%emt 0:00:00]} Nc6 {[%emt 0:00:00]} 3. b3 {[%emt 0:00:14]} Nf6 {[%emt 0:13:55]} 4. Bb2 {[%emt 0:00:18]} e6 {[%emt 0:00:44]} 5. g3 {[%emt 0:02:07]} b6 {[%emt 0:03:01]} 6. Bg2 {[%emt 0:00:18]} Bb7 {[%emt 0:00:07]} 7. O-O {[%emt 0:00:10]} Be7 {[%emt 0:00:31]} 8. d4 {[%emt 0:00:45]} d5 {[%emt 0:01:04]} 9. cxd5 {[%emt 0:00:35]} exd5 {[%emt 0:00:15]} 10. dxc5 {[%emt 0:00:08]} bxc5 {[%emt 0:01:55]} 11. Nc3 {[%emt 0:00:11]} O-O {[%emt 0:00:32]} 12. Rc1 Rc8 {[%emt 0:09:50]} 13. Bh3 {[%emt 0:04:53]} Rc7 {[%emt 0:07:10]} 14. Na4 {[%emt 0:04:05]} Nb8 {[%emt 0:01:45]} 15. Bc3 {[%emt 0:06:06]} Nc6 {[%emt 0:05:07]} 16. Bxf6 {[%emt 0:03:13]} Bxf6 {[%emt 0:00:19]} 17. Nxc5 {[%emt 0:00:51]} Bc8 {[%emt 0:03:21]} 18. Bg2 {[%emt 0:05:42]} Bf5 {[%emt 0:07:58]} 19. Qd2 {[%emt 0:02:55]} Qc8 20. b4 Nxb4 {[%emt 0:05:31]} 21. Qxb4 {[%emt 0:03:00]} Be7 {[%emt 0:00:07]} 22. Nd4 Bxc5 {[%emt 0:05:55]} 23. Rxc5 {[%emt 0:00:38]} Rxc5 {[%emt 0:00:45]} 24. Nxf5 Qc7 25. Bxd5 {[%emt 0:01:51]} Rb8 {[%emt 0:05:18]} 26. Qd4 {[%emt 0:00:39]} 1-0

[Event "Bhopal GM Open 2019"]
[Site "Bhopal"]
[Date "2019.12.22"]
[Round "3.19"]
[White "Madjidov, Jasur"]
[Black "Lund Rachit"]
[Result "1/2-1/2"]
[ECO "D55"]
[WhiteElo "2136"]
[BlackElo "1625"]
[Annotator "NA"]
[PlyCount "62"]
[EventDate "2019.12.21"]
[EventType "swiss"]
[EventCountry "IND"]
[SourceTitle "playchess.com"]
[Source "ChessBase"]
[SourceQuality "1"]
[TimeControl "5400+30"]

1. d4 {[%emt 0:04:13]} Nf6 {[%emt 0:00:33]} 2. c4 {[%emt 0:00:10]} e6 {[%emt 0:01:12]} 3. Nc3 {[%emt 0:00:11]} d5 {[%emt 0:00:59]} 4. Bg5 {[%emt 0:00:09]} Be7 {[%emt 0:02:06]} 5. e3 {[%emt 0:00:16]} O-O {[%emt 0:01:17]} 6. Nf3 {[%emt 0:00:07]} Ne4 {[%emt 0:02:46]} 7. Bxe7 {[%emt 0:08:25]} Qxe7 {[%emt 0:01:30]} 8. Qc2 {[%emt 0:03:32]} Nxc3 {[%emt 0:00:48]} 9. bxc3 {[%emt 0:00:33]} dxc4 {[%emt 0:02:03]} 10. Bxc4 {[%emt 0:00:21]} Nd7 {[%emt 0:00:55]} 11. Bd3 {[%emt 0:04:54]} h6 {[%emt 0:02:28]} 12. O-O {[%emt 0:01:06]} c5 {[%emt 0:02:29]} 13. e4 {[%emt 0:09:38]} e5 {[%emt 0:11:26]} 14. Nxe5 {[%emt 0:20:57]} Nxe5 {[%emt 0:13:15]} 15. dxe5 {[%emt 0:00:09]} Qxe5 {[%emt 0:01:35]} 16. f4 {[%emt 0:00:08]} Qc7 {[%emt 0:00:23]} 17. Qe2 {[%emt 0:03:42]} Bd7 {[%emt 0:28:41]} 18. e5 {[%emt 0:03:14]} c4 {[%emt 0:01:01]} 19. Bxc4 {[%emt 0:17:58]} Rac8 {[%emt 0:01:55]} 20. Bb3 {[%emt 0:04:06]} Qc5+ {[%emt 0:05:31]} 21. Qf2 {[%emt 0:00:48]} Qxf2+ {[%emt 0:03:29]} 22. Rxf2 {[%emt 0:06:43]} Rxc3 {[%emt 0:00:25]} 23. f5 {[%emt 0:01:31]} Re3 {[%emt 0:00:51]} 24. Rd1 {[%emt 0:02:51]} Bc8 {[%emt 0:00:17]} 25. e6 {[%emt 0:03:17]} fxe6 {[%emt 0:00:33]} 26. fxe6 {[%emt 0:01:35]} Bxe6 {[%emt 0:00:17]} 27. Rxf8+ {[%emt 0:00:26]} Kxf8 {[%emt 0:00:04]} 28. Rd8+ {[%emt 0:00:07]} Ke7 {[%emt 0:02:06]} 29. Rb8 {[%emt 0:00:06]} Bxb3 {[%emt 0:11:11]} 30. Rxb7+ {[%emt 0:00:06]} Kf6 {[%emt 0:00:42]} 31. axb3 Ke5 1/2-1/2

[Event "Bhopal GM Open 2019"]
[Site "Bhopal"]
[Date "2019.12.23"]
[Round "4.17"]
[White "Mithil Anande P"]
[Black "Jay Kundaliya"]
[Result "0-1"]
[ECO "D12"]
[WhiteElo "1632"]
[BlackElo "2088"]
[Annotator "NA RC"]
[PlyCount "148"]
[EventDate "2019.12.21"]
[EventType "swiss"]
[EventCountry "IND"]
[SourceTitle "playchess.com"]
[Source "ChessBase"]
[SourceQuality "1"]
[TimeControl "5400+30"]

1. Nf3 {[%emt 0:00:00]} Nf6 {[%emt 0:04:47]} 2. d4 {[%emt 0:00:45]} d5 {[%emt 0:01:18]} 3. e3 {[%emt 0:00:41]} c6 {[%emt 0:02:57]} 4. c4 {[%emt 0:04:14]} Bf5 {[%emt 0:04:03]} 5. Nc3 {[%emt 0:00:30]} e6 {[%emt 0:00:06]} 6. Qb3 {[%emt 0:03:17]} Qc7 {[%emt 0:02:51]} 7. Nh4 {[%emt 0:04:42] D12: Slav Defence: 3 Nf3 Nf6 4 e3 Bf5} Bg6 {[%emt 0:02:21]} 8. Nxg6 {[%emt 0:04:07]} hxg6 {[%emt 0:00:02]} 9. g3 {[%emt 0:00:46]} (9. Bd2 Nbd7 10. Rc1 Nb6 11. cxd5 exd5 12. h3 Qd7 13. Bd3 Bd6 14. a4 O-O {0-1 (38) Beliavsky,A (2526)-Mamedov,R (2701) Skopje 2019}) 9... Nbd7 {[%emt 0:04:32]} 10. Bg2 {[%emt 0:00:38]} Bd6 {[%emt 0:06:48]} 11. Bd2 {[%emt 0:05:00]} O-O {[%emt 0:04:43]} 12. O-O {[%emt 0:01:12]} Rad8 $146 {[%emt 0:09:04]} ({Predecessor:} 12... a5 13. Rac1 Bb4 14. Rfd1 Nb6 15. c5 Nc4 {½-½ (35) De Souza,S (2593)-Almiron,L (2574) ICCF email 2008}) 13. e4 {[%emt 0:09:48]} (13. Rfc1 $14) 13... dxc4 {[%emt 0:00:17]} 14. Qxc4 {[%emt 0:00:19]} e5 {[%emt 0:00:02]} 15. d5 {[%emt 0:06:16]} Nb6 {[%emt 0:19:16]} 16. Qb3 {[%emt 0:10:00]} Bc5 {[%emt 0:08:17]} 17. Rac1 {[%emt 0:09:07]} Ng4 {[%emt 0:08:37]} 18. Bg5 {[%emt 0:16:59]} f6 {[%emt 0:06:52]} 19. dxc6+ {[%emt 0:01:21]} (19. Bh3 $18 Kh8 20. Bxg4 fxg5 21. Ne2) 19... Kh7 {[%emt 0:03:18]} 20. Nd5 {[%emt 0:08:51]} Qxc6 {[%emt 0:01:25]} 21. Be3 {[%emt 0:10:07]} Nxe3 {[%emt 0:00:37]} 22. Nxe3 {[%emt 0:00:05]} Qd6 {[%emt 0:00:38]} 23. Rfd1 {[%emt 0:00:46]} Bd4 {[%emt 0:01:46]} 24. Qb5 {[%emt 0:01:24]} Rc8 {[%emt 0:02:09]} 25. Nd5 {[%emt 0:00:46]} Nxd5 {[%emt 0:00:32]} 26. exd5 {[%emt 0:00:12]} Bb6 {[%emt 0:00:21]} 27. a4 {[%emt 0:00:52]} a5 {[%emt 0:02:05]} 28. Rc4 {[%emt 0:00:24]} Rxc4 {[%emt 0:01:45]} 29. Qxc4 {[%emt 0:00:05]} f5 {[%emt 0:00:04]} 30. Rd3 {[%emt 0:01:09]} e4 {[%emt 0:00:15]} 31. Rb3 {[%emt 0:00:10]} Rf6 {[%emt 0:00:14]} 32. Qb5 {[%emt 0:00:47]} Qe5 {[%emt 0:00:23]} 33. Qd7 {[%emt 0:00:30]} e3 {[%emt 0:00:20]} 34. fxe3 {[%emt 0:00:21]} Bxe3+ {[%emt 0:00:02]} 35. Kh1 {[%emt 0:00:12]} Bc5 {[%emt 0:00:22]} 36. Qb5 $2 {[%emt 0:00:35] [#]} (36. Rf3) 36... b6 $2 {[%emt 0:00:27]} (36... Rb6 $1 $19 {[%mdl 512] and Black stays clearly on top.} 37. Qxc5 Rxb3) 37. Qf1 {[%emt 0:00:48]} Qd4 {[%emt 0:00:51]} 38. Rc3 {[%emt 0:00:40]} Qxa4 {[%emt 0:00:23]} 39. Rf3 {[%emt 0:00:28]} Qd4 {[%emt 0:00:15]} 40. b3 {[%emt 0:00:10]} Qe5 {[%emt 0:01:52]} 41. Rd3 {[%emt 0:00:48]} g5 {[%emt 0:00:09]} 42. Rd1 {[%emt 0:00:26]} f4 {[%emt 0:02:17]} 43. Re1 {[%emt 0:00:30]} Qd4 {[%emt 0:00:14]} 44. Be4+ {[%emt 0:00:14]} g6 {[%emt 0:00:46]} 45. Qh3+ {[%emt 0:00:39]} Kg7 {[%emt 0:00:02]} 46. Qd7+ {[%emt 0:00:09]} Rf7 {[%emt 0:00:10]} 47. Qe6 {[%emt 0:00:41]} Qf6 {[%emt 0:00:29]} 48. Qxf6+ {[%emt 0:00:19]} Rxf6 {[%emt 0:00:26]} 49. gxf4 {[%emt 0:01:01]} gxf4 {[%emt 0:00:01]} 50. Kg2 {[%emt 0:00:08]} Rd6 {[%emt 0:00:47]} 51. Kf3 {[%emt 0:00:38]} Kf6 {[%emt 0:00:03]} 52. Kxf4 {[%emt 0:00:49]} Rd8 {[%emt 0:00:17]} 53. Re2 {[%emt 0:00:17]} Rh8 {[%emt 0:00:31]} 54. Bd3 {[%emt 0:00:35]} g5+ {[%emt 0:00:30]} 55. Kf3 {[%emt 0:00:22]} Rh3+ {[%emt 0:00:04]} 56. Ke4 {[%emt 0:00:10]} Bd6 {[%emt 0:01:40]} 57. Kd4 {[%emt 0:00:20]} Rh4+ {[%emt 0:01:14]} 58. Re4 $15 {[%emt 0:01:07]} Bxh2 {[%emt 0:00:42]} 59. Rxh4 {[%emt 0:00:37]} gxh4 {[%emt 0:00:02]} 60. Ke4 {[%emt 0:00:25]} Ke7 {[%emt 0:00:39]} 61. Bf1 {[%emt 0:00:25]} Kd6 {[%emt 0:00:03]} 62. Kd4 {[%emt 0:00:35]} Bg1+ {[%emt 0:00:45]} 63. Kc4 {[%emt 0:00:34]} Bc5 {[%emt 0:00:15]} 64. Bg2 {[%emt 0:00:20]} Ke5 {[%emt 0:00:59]} 65. Kb5 {[%emt 0:00:07]} Kd4 {[%emt 0:00:27]} 66. d6 {[%emt 0:00:21]} Bxd6 {[%emt 0:00:11]} 67. Kxb6 {[%emt 0:00:03]} Bb4 {[%emt 0:00:05]} 68. Kb5 {[%emt 0:00:48]} Ke3 {[%emt 0:00:02]} 69. Kc4 {[%emt 0:00:14]} Kf2 {[%emt 0:00:01]} 70. Bh1 {[%emt 0:00:22]} Kg1 {[%emt 0:00:08]} 71. Be4 {[%emt 0:00:09]} h3 {[%emt 0:00:02]} 72. Kd3 {[%emt 0:00:18]} h2 {[%emt 0:00:01]} 73. Kc2 {[%emt 0:00:08]} h1=Q {[%emt 0:00:04]} 74. Bxh1 {[%emt 0:00:08]} Kxh1 {[%emt 0:00:01]} 0-1

[Event "Bhopal GM Open 2019"]
[Site "Bhopal"]
[Date "2019.12.23"]
[Round "4.18"]
[White "Sri Sai Baswanth P"]
[Black "Medhansh Saxena"]
[Result "1/2-1/2"]
[ECO "A03"]
[WhiteElo "2027"]
[BlackElo "1628"]
[Annotator "NA RC"]
[PlyCount "73"]
[EventDate "2019.12.21"]
[EventType "swiss"]
[EventCountry "IND"]
[SourceTitle "playchess.com"]
[Source "ChessBase"]
[SourceQuality "1"]
[TimeControl "5400+30"]

{[%evp 10,73,8,-20,-19,-22,32767,32767,-18,-14,23,33,32767,32767,34,26,38,31,29,6,32,18,25,0,10,40,4,13,38,32,268,249,250,-28,140,72,77,0,0,-25,268,-70,-22,-36,-53,-52,-63,-75,-19,-33,-27,-43,-21,-25,0,-20,-8,-8,-18,-50,-45,-128,-150,-133,-136,-141]} 1. f4 {[%emt 0:00:00]} d5 {[%emt 0:00:17]} 2. Nf3 {[%emt 0:00:00]} c5 {[%emt 0:00:23]} 3. g3 {[%emt 0:00:06]} Nc6 {[%emt 0:00:05]} 4. Bg2 {[%emt 0:00:04]} Nf6 {[%emt 0:00:11]} 5. d3 {[%emt 0:00:08]} g6 {[%emt 0:06:57]} 6. c3 {[%emt 0:00:09]} Bg7 {[%emt 0:00:06]} 7. O-O {[%emt 0:00:06]} O-O {[%emt 0:00:04]} 8. Na3 {[%emt 0:00:33]} Re8 {[%emt 0:03:54] A03: Bird's Opening with 1...d5} (8... Rb8 9. Ne5 Nxe5 10. fxe5 Ne8 11. d4 cxd4 12. Qxd4 Be6 13. Rd1 Qa5 14. Bg5 f6 15. Be3 fxe5 16. Qxa7 Qd8 17. Bxd5 Bxd5 {1-0 (61) Maghsoodloo,P (2656)-Vaibhav,S (2591) Zuerich 2019}) 9. Qc2 {[%emt 0:01:21]} e6 $146 {[%emt 0:12:55]} ({Predecessor:} 9... a6 10. e4 e5 11. Nxe5 Nxe5 12. fxe5 Rxe5 13. Bf4 Re8 14. Rfe1 Be6 15. Rad1 b5 16. c4 dxc4 17. dxc4 {0-1 (61) Rozic,S (2208)-Suta,A (2278) Slovenia 2019}) 10. e4 {[%emt 0:00:11]} b6 {[%emt 0:04:24]} 11. e5 {[%emt 0:04:20]} Nd7 $1 {[%emt 0:01:55]} 12. Nb5 {[%emt 0:00:07]} Bf8 {[%emt 0:00:35]} 13. c4 {[%emt 0:04:35]} Bb7 {[%emt 0:03:40]} 14. Nc3 {[%emt 0:02:35]} Be7 {[%emt 0:11:44]} 15. Qe2 {[%emt 0:01:45]} Nf8 {[%emt 0:02:06]} 16. g4 {[%emt 0:05:33]} f6 {[%emt 0:03:33]} 17. f5 {[%emt 0:02:34]} dxc4 {[%emt 0:01:23]} 18. dxc4 {[%emt 0:00:13]} exf5 {[%emt 0:13:23]} 19. gxf5 {[%emt 0:00:18]} Nxe5 $2 {[%emt 0:16:28]} (19... gxf5 $11 {and Black has nothing to worry.} 20. Bh6 Ng6) 20. Nxe5 {[%emt 0:01:08]} Bxg2 {[%emt 0:00:02]} 21. Kxg2 $2 {[%emt 0:00:38]} (21. Qxg2 $18 Qd4+ {[%mdl 64] Double Attack} 22. Kh1 Qxe5 23. Bh6) 21... fxe5 $2 {[%emt 0:00:01] [#]} (21... Bd6 $1 $15) 22. Nd5 {[%emt 0:00:25]} ({Inferior is} 22. Qxe5 Bf6 $11) (22. Qg4 $142 $1) 22... gxf5 {[%emt 0:01:29]} 23. Qxe5 {[%emt 0:03:02]} (23. Rxf5 $16 Ng6 24. Kh1) 23... Ng6 {[%emt 0:03:14]} 24. Qe6+ {[%emt 0:00:34]} (24. Qc3 $5 {[%cal Rc1h6]} Bd6 25. Nf6+ {[%mdl 64] Double Attack} Kh8 26. Ng4+ (26. Nxe8+ Be5 $15) 26... Be5 27. Nxe5 Rxe5 28. Rxf5 $11) 24... Kg7 $2 {[%emt 0:00:58]} (24... Kh8 $15 25. Kh1 Bd6 26. Qxf5 Rf8) 25. Kg1 $2 {[%emt 0:04:29]} (25. Rxf5 $18 Bh4 26. Rf7+ (26. Qf7+ Kh8 $18) 26... Kh8 27. Qg4) 25... Bd6 $1 {[%emt 0:01:50]} 26. Qxf5 {[%emt 0:00:06]} Rf8 $1 {[%emt 0:00:48]} 27. Qh3 {[%emt 0:00:37]} Rxf1+ {[%emt 0:04:29]} 28. Kxf1 {[%emt 0:00:16]} Qh4 {[%emt 0:02:35]} 29. Qxh4 {[%emt 0:03:18]} Nxh4 {[%emt 0:00:02]} 30. Bd2 {[%emt 0:01:07]} Rf8+ {[%emt 0:00:32]} 31. Ke2 {[%emt 0:00:07]} Ng6 {[%emt 0:01:16]} 32. h4 {[%emt 0:03:45]} Re8+ {[%emt 0:00:46]} 33. Kd3 {[%emt 0:00:13]} Ne5+ {[%emt 0:01:32]} 34. Kc3 {[%emt 0:09:18]} Nf3 {[%emt 0:00:26]} 35. h5 {[%emt 0:00:52]} ({Better is} 35. Kd3 $15) 35... Be5+ {[%emt 0:01:00]} 36. Kc2 $17 {[%emt 0:02:00]} Nxd2 {[%emt 0:00:42]} 37. Rg1+ {[%emt 0:00:35]} 1/2-1/2

[Event "Bhopal GM Open 2019"]
[Site "Bhopal"]
[Date "2019.12.23"]
[Round "4.19"]
[White "Lund Rachit"]
[Black "Anadkat Kartavya"]
[Result "0-1"]
[ECO "C50"]
[WhiteElo "1625"]
[BlackElo "2023"]
[Annotator "NA RC"]
[PlyCount "98"]
[EventDate "2019.12.21"]
[EventType "swiss"]
[EventCountry "IND"]
[SourceTitle "playchess.com"]
[Source "ChessBase"]
[SourceQuality "1"]
[TimeControl "5400+30"]

{[%evp 13,85,42,48,-10,0,-29,-5,-27,-22,-103,-75,-132,-57,-191,-174,-207,-179,-189,-178,-219,-221,-230,-120,-228,-161,-180,-187,-222,-219,-221,-209,-214,-201,32767,-201,32767,32767,32767,32767,32767,32767,-240,-235,-284,-272,-290,-230,-284,-300,-290,-295,-276,-300,-312,-296,-300,-308,-292,-263,-260,-257,-249,-245,-369,-292,-303,-312,-300,-286,-343,-330,-481,-516,-818]} 1. e4 {[%emt 0:00:08]} e5 {[%emt 0:00:00]} 2. Nf3 {[%emt 0:00:14]} Nc6 {[%emt 0:00:00]} 3. Bc4 {[%emt 0:00:07]} Bc5 {[%emt 0:00:00]} 4. O-O {[%emt 0:00:21]} Nf6 {[%emt 0:00:03]} 5. d3 {[%emt 0:00:19]} O-O {[%emt 0:00:10]} 6. c3 {[%emt 0:00:21]} d5 {[%emt 0:02:40]} 7. exd5 {[%emt 0:01:00]} Nxd5 {[%emt 0:00:02]} 8. b4 {[%emt 0:04:35]} Be7 {[%emt 0:00:01] C54: Giuoco Piano: 4 c3 Nf6, main lines with 5 d4 and 5 d3} (8... Bb6 9. h3 f6 10. Bxd5+ Qxd5 11. c4 Qf7 12. c5 Nxb4 13. cxb6 axb6 14. Ba3 c5 15. Bxb4 cxb4 16. Nbd2 Rxa2 17. Rxa2 Qxa2 {1-0 (49) Li,C (2720)-Ganguly,S (2640) Fufeng 2017}) 9. h3 {[%emt 0:16:42]} Bf5 {[%emt 0:04:14]} 10. Bb3 {[%emt 0:14:10]} Bf6 {[%emt 0:02:30]} 11. Bc2 {[%emt 0:06:43]} (11. Re1 $15) 11... Qd7 $146 {[%emt 0:03:35]} ({Predecessor:} 11... Re8 12. Re1 h6 13. Nfd2 e4 14. dxe4 Nxc3 15. Nxc3 Bxc3 16. Rb1 Nxb4 {½-½ (31) Shome,S (2148)-Sai Agni,J (2373) Novi Sad 2018}) 12. b5 {[%emt 0:13:05]} Nd8 {[%emt 0:01:51]} ({Better is} 12... Nce7 $17 13. a4 Ng6) 13. Ng5 {[%emt 0:18:11] [#]} ({Better is} 13. Re1 $15) 13... Bxg5 $1 {[%emt 0:03:13]} 14. Bxg5 {[%emt 0:01:06]} Ne6 {[%emt 0:00:04]} ({Don't do} 14... Qxb5 15. Qf3 $17) 15. Be3 {[%emt 0:01:01]} Ndf4 {[%emt 0:01:01]} ({Don't take} 15... Qxb5 16. c4 $17) 16. d4 {[%emt 0:12:07]} Bxc2 {[%emt 0:01:33]} 17. Qxc2 {[%emt 0:00:01]} exd4 {[%emt 0:00:23]} (17... Qd5 $19 {[%csl Gf4][%cal Rd5g2]} 18. f3 exd4 19. cxd4 Nxd4) 18. cxd4 {[%emt 0:02:00]} (18. Qd2 $17 {was necessary.} Nd5 19. cxd4) 18... Nxd4 {[%emt 0:01:23]} 19. Qc4 {[%emt 0:00:29]} Nfe2+ {[%emt 0:02:10]} 20. Kh1 {[%emt 0:01:09]} Qxb5 {[%emt 0:02:14]} 21. Qxb5 {[%emt 0:00:04]} Nxb5 {[%emt 0:00:02]} 22. a4 {[%emt 0:02:00]} Nbd4 {[%emt 0:01:11]} 23. Ra2 {[%emt 0:00:57]} Rfe8 {[%emt 0:02:39]} 24. Rd2 {[%emt 0:01:25]} Rxe3 {[%emt 0:00:44]} 25. fxe3 {[%emt 0:00:05]} Ng3+ {[%emt 0:00:02]} 26. Kg1 {[%emt 0:00:24]} Nxf1 {[%emt 0:00:22]} 27. Rxd4 {[%emt 0:02:00]} Nxe3 28. g4 {[%emt 0:01:00]} c6 {[%emt 0:01:02]} 29. Nc3 {[%emt 0:00:41]} Kf8 {[%emt 0:02:54]} 30. Rd7 {[%emt 0:00:32]} Rb8 {[%emt 0:01:20]} 31. Ne4 {[%emt 0:00:20]} Nc4 {[%emt 0:01:09]} 32. Rc7 {[%emt 0:01:15]} Ne5 {[%emt 0:02:53]} 33. Nd6 {[%emt 0:00:47]} b5 {[%emt 0:01:05]} 34. axb5 {[%emt 0:00:35]} cxb5 {[%emt 0:00:03]} 35. Rc5 {[%emt 0:00:33]} Nd7 {[%emt 0:07:21]} 36. Rf5 {[%emt 0:00:55]} f6 {[%emt 0:07:42]} 37. Nxb5 {[%emt 0:00:17]} a5 {[%emt 0:01:02]} 38. Nc3 {[%emt 0:00:40]} (38. Rd5 {is a better defense.}) 38... Rc8 {[%emt 0:02:33]} 39. Ne4 {[%emt 0:00:36]} Rc4 {[%emt 0:00:19]} 40. Nd6 {[%emt 0:00:23]} Rc1+ {[%emt 0:02:20]} 41. Kf2 {[%emt 0:00:32]} Ke7 {[%emt 0:01:01]} 42. Nb7 {[%emt 0:00:36]} (42. Rd5 {was worth a try.} Ke6 43. Rd4) 42... Ne5 {[%emt 0:00:21]} 43. g5 $19 {[%emt 0:00:27]} (43. Ke2 $142 a4 44. Rf4 Rc2+ 45. Ke3) 43... a4 {[%emt 0:03:23]} 44. gxf6+ {[%emt 0:00:23]} gxf6 {[%emt 0:00:01]} 45. Na5 {[%emt 0:00:42]} a3 {[%emt 0:00:20]} 46. Rh5 {[%emt 0:00:30]} a2 {[%emt 0:00:23]} 47. Rxh7+ {[%emt 0:00:07]} Nf7 {[%emt 0:00:02]} 48. Nb3 {[%emt 0:00:15]} Rb1 {[%emt 0:00:18]} 49. Rh4 {[%emt 0:00:24]} Rb2+ 0-1